fUST/lending_fUST_20240810
["ID","MTS","AMOUNT","RATE_DAILY","PERIOD"]
[334576408,1723259442012,-812.84348432,0.00020717,2]
[334576409,1723259442021,-812.84348432,0.00020717,2]
[334576410,1723259442031,-812.84348432,0.00020717,2]
[334576411,1723259442039,-20708.53553861,0.00020721,11]
[334576412,1723259442049,-4184.96471672,0.00020721,2]
[334576413,1723259442059,-10494.9163161,0.00020721,2]
[334576414,1723259442068,-1627.09162866,0.00020721,2]
[334576415,1723259442078,-90950.99395817,0.00020721,2]
[334576423,1723259443284,-11.85756365,0.00020721,2]
[334576428,1723259445831,273.37336231,9.9e-05,2]
[334576460,1723259462283,273.37336231,9.9e-05,2]
[334576461,1723259479044,273.37336231,9.9e-05,2]
[334576462,1723259494579,273.37336231,9.9e-05,2]
[334576463,1723259510071,273.37336231,9.9e-05,2]
[334576465,1723259526020,273.37336231,9.9e-05,2]
[334576466,1723259541859,273.37336231,9.9e-05,2]
[334576467,1723259557705,273.37336231,9.9e-05,2]
[334576468,1723259573243,273.37336231,9.9e-05,2]
[334576469,1723259588758,273.37336231,9.9e-05,2]
[334576474,1723259592765,225.21183775,0.00012,2]
[334576475,1723259605355,273.37336231,9.9e-05,2]
[334576477,1723259621498,273.37336231,9.9e-05,2]
[334576478,1723259637873,273.37336231,9.9e-05,2]
[334576480,1723259653195,273.37336231,9.9e-05,2]
[334576481,1723259668644,273.37336231,9.9e-05,2]
[334576482,1723259684159,273.37336231,9.9e-05,2]
[334576483,1723259699562,273.37336231,9.9e-05,2]
[334576484,1723259717676,273.37336231,9.9e-05,2]
[334576485,1723259733753,273.37336231,9.9e-05,2]
[334576486,1723259749616,273.37336231,9.9e-05,2]
[334576488,1723259765119,273.37336231,9.9e-05,2]
[334576489,1723259767894,168.84678,0.00014247,2]
[334576490,1723259780587,273.37336231,9.9e-05,2]
[334576491,1723259797163,273.37336231,9.9e-05,2]
[334576492,1723259813085,273.37336231,9.9e-05,2]
[334576493,1723259829562,273.37336231,9.9e-05,2]
[334576494,1723259845346,273.37336231,9.9e-05,2]
[334576495,1723259861726,273.37336231,9.9e-05,2]
[334576496,1723259877956,273.37336231,9.9e-05,2]
[334576497,1723259893747,273.37336231,9.9e-05,2]
[334576498,1723259909633,273.37336231,9.9e-05,2]
[334576499,1723259925877,273.37336231,9.9e-05,2]
[334576500,1723259941905,273.37336231,9.9e-05,2]
[334576501,1723259957223,273.37336231,9.9e-05,2]
[334576502,1723259973383,273.37336231,9.9e-05,2]
[334576503,1723259989911,273.37336231,9.9e-05,2]
[334576504,1723260005917,273.37336231,9.9e-05,2]
[334576505,1723260022727,273.37336231,9.9e-05,2]
[334576506,1723260038639,273.37336231,9.9e-05,2]
[334576507,1723260053904,273.37336231,9.9e-05,2]
[334576508,1723260070295,273.37336231,9.9e-05,2]
[334576509,1723260086099,273.37336231,9.9e-05,2]
[334576510,1723260101658,273.37336231,9.9e-05,2]
[334576511,1723260117119,273.37336231,9.9e-05,2]
[334576512,1723260132884,273.37336231,9.9e-05,2]
[334576513,1723260148533,273.37336231,9.9e-05,2]
[334576514,1723260163874,273.37336231,9.9e-05,2]
[334576515,1723260179534,273.37336231,9.9e-05,2]
[334576517,1723260195183,273.37336231,9.9e-05,2]
[334576518,1723260210516,273.37336231,9.9e-05,2]
[334576519,1723260226021,273.37336231,9.9e-05,2]
[334576520,1723260241834,273.37336231,9.9e-05,2]
[334576521,1723260258382,273.37336231,9.9e-05,2]
[334576522,1723260274421,273.37336231,9.9e-05,2]
[334576523,1723260289760,273.37336231,9.9e-05,2]
[334576524,1723260305134,273.37336231,9.9e-05,2]
[334576525,1723260322154,273.37336231,9.9e-05,2]
[334576526,1723260337665,273.37336231,9.9e-05,2]
[334576527,1723260352945,273.37336231,9.9e-05,2]
[334576528,1723260359125,161.7359003,0.00014247,2]
[334576529,1723260369133,273.37336231,9.9e-05,2]
[334576530,1723260386801,273.37336231,9.9e-05,2]
[334576531,1723260402150,273.37336231,9.9e-05,2]
[334576532,1723260417534,273.37336231,9.9e-05,2]
[334576533,1723260433908,273.37336231,9.9e-05,2]
[334576534,1723260449941,273.37336231,9.9e-05,2]
[334576535,1723260465344,273.37336231,9.9e-05,2]
[334576536,1723260481431,273.37336231,9.9e-05,2]
[334576537,1723260497110,273.37336231,9.9e-05,2]
[334576538,1723260501122,771.88582898,0.000125,2]
[334576539,1723260512611,273.37336231,9.9e-05,2]
[334576540,1723260528007,273.37336231,9.9e-05,2]
[334576541,1723260544212,273.37336231,9.9e-05,2]
[334576542,1723260559202,273.37336231,9.9e-05,2]
[334576543,1723260575685,273.37336231,9.9e-05,2]
[334576544,1723260592014,273.37336231,9.9e-05,2]
[334576545,1723260607901,273.37336231,9.9e-05,2]
[334576546,1723260624022,273.37336231,9.9e-05,2]
[334576633,1723260639415,273.37336231,9.9e-05,2]
[334576642,1723260641496,-200.0,0.00018904,2]
[334576643,1723260641505,-274.0,0.00019999,2]
[334576644,1723260641515,-4184.96471672,0.0002,2]
[334576645,1723260641525,-3123.01656173,0.0002,2]
[334576646,1723260641535,-10494.9163161,0.0002,2]
[334576647,1723260641546,-600.0,0.00020227,2]
[334576648,1723260641557,-600.0,0.00020438,2]
[334576649,1723260641566,-1635.45641427,0.000205,2]
[334576650,1723260641576,-500.0,0.00020547,4]
[334576651,1723260641586,-500.0,0.00020547,4]
[334576652,1723260641595,-500.0,0.00020547,4]
[334576653,1723260641604,-500.0,0.00020547,4]
[334576654,1723260641615,-500.0,0.00020547,4]
[334576655,1723260641630,-500.0,0.00020547,4]
[334576656,1723260641640,-500.0,0.00020547,4]
[334576657,1723260641650,-500.0,0.00020547,4]
[334576658,1723260641659,-500.0,0.00020547,4]
[334576659,1723260641669,-500.0,0.00020547,4]
[334576660,1723260641679,-203.09822424,0.00020547,4]
[334576661,1723260641688,-1000.0,0.0002055,2]
[334576662,1723260641698,-1000.0,0.00020552,2]
[334576663,1723260641708,-1000.0,0.00020596,2]
[334576664,1723260641717,-267.8162636,0.000206,2]
[334576665,1723260641726,-153.0,0.000206,2]
[334576666,1723260641735,-153.0,0.000206,2]
[334576667,1723260641745,-267.8162636,0.000206,2]
[334576668,1723260641754,-267.8162636,0.000206,2]
[334576669,1723260641763,-535.6325272,0.000206,2]
[334576670,1723260641773,-153.0,0.000206,2]
[334576671,1723260641782,-207.2250634,0.000206,2]
[334576672,1723260641792,-294.5666805,0.000206,2]
[334576673,1723260641801,-153.0,0.000206,2]
[334576674,1723260641810,-153.0,0.000206,2]
[334576675,1723260641820,-153.0,0.000206,2]
[334576676,1723260641829,-294.5666805,0.000206,2]
[334576677,1723260641838,-267.8162636,0.000206,2]
[334576678,1723260641848,-207.2250634,0.000206,2]
[334576679,1723260641857,-267.8162636,0.000206,2]
[334576680,1723260641866,-294.5666805,0.000206,2]
[334576681,1723260641878,-153.0,0.000206,2]
[334576682,1723260641887,-207.2250634,0.000206,2]
[334576683,1723260641896,-267.8162636,0.000206,2]
[334576684,1723260641906,-153.0,0.000206,2]
[334576685,1723260641916,-294.5666805,0.000206,2]
[334576686,1723260641927,-207.2250634,0.000206,2]
[334576687,1723260641936,-588.8467108,0.000206,2]
[334576688,1723260641945,-267.8162636,0.000206,2]
[334576689,1723260641954,-153.0,0.000206,2]
[334576690,1723260641963,-2000.0,0.00020611,2]
[334576691,1723260641972,-278.44727781,0.0002062,3]
[334576692,1723260641982,-2727.98858664,0.00020621,2]
[334576693,1723260641991,-952.15920477,0.00020649,2]
[334576694,1723260642001,-42452.48842163,0.0002067,2]
[334576695,1723260642011,-1000.0,0.00020674,2]
[334576696,1723260642022,-320.21,0.00020691,3]
[334576697,1723260642031,-160.11,0.00020691,3]
[334576698,1723260642040,-480.33,0.00020691,3]
[334576699,1723260642049,-13364.28160714,0.000207,2]
[334576700,1723260642058,-31241.5705367,0.00020701,2]
[334576701,1723260642067,-31241.5705367,0.0002071,2]
[334576702,1723260642077,-46404.77455426,0.00020711,11]
[334576703,1723260642086,-44785.3434706,0.00020711,2]
[334576739,1723260655326,273.37336231,9.9e-05,2]
[334576740,1723260668589,231.96675048,0.00012,2]
[334576741,1723260670744,273.37336231,9.9e-05,2]
[334576743,1723260678027,534.16166815,0.00012,2]
[334576744,1723260679087,750.36715912,0.00012,2]
[334576745,1723260686578,273.37336231,9.9e-05,2]
[334576746,1723260702524,273.37336231,9.9e-05,2]
[334576747,1723260711966,1488.83383157,0.00012,2]
[334576748,1723260716501,812.31777146,0.00012,2]
[334576749,1723260718952,273.37336231,9.9e-05,2]
[334576750,1723260727960,533.88644737,0.00012,2]
[334576751,1723260734362,273.37336231,9.9e-05,2]
[334576753,1723260749731,273.37336231,9.9e-05,2]
[334576754,1723260765722,273.37336231,9.9e-05,2]
[334576755,1723260781761,273.37336231,9.9e-05,2]
[334576756,1723260797293,273.37336231,9.9e-05,2]
[334576757,1723260811069,168.11394,0.00014247,2]
[334576758,1723260813583,273.37336231,9.9e-05,2]
[334576759,1723260829871,273.37336231,9.9e-05,2]
[334576760,1723260846265,273.37336231,9.9e-05,2]
[334576761,1723260862188,273.37336231,9.9e-05,2]
[334576762,1723260877544,273.37336231,9.9e-05,2]
[334576763,1723260893447,273.37336231,9.9e-05,2]
[334576764,1723260908873,273.37336231,9.9e-05,2]
[334576765,1723260924358,273.37336231,9.9e-05,2]
[334576766,1723260939731,273.37336231,9.9e-05,2]
[334576767,1723260955631,273.37336231,9.9e-05,2]
[334576768,1723260955979,224.09120952,0.00027,120]
[334576769,1723260972520,273.37336231,9.9e-05,2]
[334576770,1723260988420,273.37336231,9.9e-05,2]
[334576771,1723261003611,273.37336231,9.9e-05,2]
[334576772,1723261019717,273.37336231,9.9e-05,2]
[334576773,1723261035752,273.37336231,9.9e-05,2]
[334576774,1723261051195,273.37336231,9.9e-05,2]
[334576775,1723261066523,273.37336231,9.9e-05,2]
[334576776,1723261082396,273.37336231,9.9e-05,2]
[334576777,1723261097896,273.37336231,9.9e-05,2]
[334576778,1723261113297,273.37336231,9.9e-05,2]
[334576779,1723261129169,273.37336231,9.9e-05,2]
[334576780,1723261144589,273.37336231,9.9e-05,2]
[334576781,1723261160207,273.37336231,9.9e-05,2]
[334576782,1723261176985,273.37336231,9.9e-05,2]
[334576783,1723261192797,273.37336231,9.9e-05,2]
[334576784,1723261208216,273.37336231,9.9e-05,2]
[334576786,1723261224593,273.37336231,9.9e-05,2]
[334576787,1723261241695,273.37336231,9.9e-05,2]
[334576788,1723261257449,273.37336231,9.9e-05,2]
[334576789,1723261265202,169.236706,0.00014247,2]
[334576790,1723261272805,273.37336231,9.9e-05,2]
[334576791,1723261288279,273.37336231,9.9e-05,2]
[334576792,1723261304257,273.37336231,9.9e-05,2]
[334576793,1723261320019,273.37336231,9.9e-05,2]
[334576794,1723261336567,273.37336231,9.9e-05,2]
[334576795,1723261352332,273.37336231,9.9e-05,2]
[334576796,1723261368411,273.37336231,9.9e-05,2]
[334576797,1723261383872,273.37336231,9.9e-05,2]
[334576798,1723261400452,273.37336231,9.9e-05,2]
[334576799,1723261415917,273.37336231,9.9e-05,2]
[334576800,1723261432018,273.37336231,9.9e-05,2]
[334576801,1723261448764,273.37336231,9.9e-05,2]
[334576802,1723261464175,273.37336231,9.9e-05,2]
[334576803,1723261479525,273.37336231,9.9e-05,2]
[334576804,1723261494915,273.37336231,9.9e-05,2]
[334576805,1723261510412,273.37336231,9.9e-05,2]
[334576806,1723261526524,273.37336231,9.9e-05,2]
[334576807,1723261542323,273.37336231,9.9e-05,2]
[334576808,1723261558203,273.37336231,9.9e-05,2]
[334576809,1723261573932,273.37336231,9.9e-05,2]
[334576810,1723261589269,273.37336231,9.9e-05,2]
[334576811,1723261604586,273.37336231,9.9e-05,2]
[334576812,1723261620125,273.37336231,9.9e-05,2]
[334576813,1723261635523,213.62833569,9.9e-05,2]
[334576815,1723261797701,167.62538,0.00014247,2]
[334576881,1723261832218,-200.0,0.00018904,2]
[334576882,1723261832228,-788.4723926,0.00019312,2]
[334576883,1723261832238,-172.310018,0.00019529,2]
[334576884,1723261832249,-300.0,0.00019999,2]
[334576885,1723261832258,-1149.76614244,0.0002,2]
[334576886,1723261832270,-1039.50227075,0.0002,2]
[334576887,1723261832294,-868.49,0.0002,2]
[334576888,1723261832306,-1127.20630353,0.0002,2]
[334576889,1723261832315,-1590.60010579,0.0002,2]
[334576892,1723261838447,-36.49152287,0.0002,2]
[334576893,1723261838456,-3852.70847713,0.0002,2]
[334576905,1723261840529,-6642.20783897,0.0002,2]
[334576906,1723261840540,-500.0,0.00020135,2]
[334576907,1723261840550,-500.0,0.00020135,2]
[334576908,1723261840561,-634.66082425,0.00020214,2]
[334576909,1723261840572,-1000.0,0.00020503,2]
[334576910,1723261840582,-172.310018,0.00020546,2]
[334576911,1723261840591,-1000.0,0.00020597,2]
[334576912,1723261840601,-1004.23,0.0002061,2]
[334576913,1723261840611,-2000.0,0.00020611,2]
[334576914,1723261840621,-2455.18972794,0.00020621,2]
[334576915,1723261840630,-328.70707109,0.00020632,2]
[334576916,1723261840640,-1004.23,0.00020638,2]
[334576917,1723261840650,-1020.4320359,0.00020642,2]
[334576918,1723261840660,-1004.23,0.00020665,2]
[334576919,1723261840671,-150.0,0.00020684,2]
[334576920,1723261840681,-507.0,0.00020684,2]
[334576921,1723261840692,-1412.0,0.00020684,2]
[334576922,1723261840701,-1004.23,0.00020693,2]
[334576923,1723261840711,-320.21,0.00020701,3]
[334576924,1723261840721,-160.11,0.00020701,3]
[334576925,1723261840730,-480.33,0.00020701,3]
[334576926,1723261840741,-1000.0,0.00020708,2]
[334576927,1723261840751,-31241.5705367,0.0002071,2]
[334576928,1723261840761,-46404.77455426,0.00020711,11]
[334576929,1723261840770,-20708.53553861,0.00020711,11]
[334576930,1723261840780,-46343.23255968,0.00020711,2]
[334577030,1723262306776,169.236706,0.00014247,2]
[334577031,1723262336609,154.77557542,0.00014247,2]
[334577032,1723262366651,154.77557542,0.00014247,2]
[334577033,1723262648002,10000.0,0.00016,2]
[334577034,1723262654896,10000.0,0.00016,2]
[334577035,1723262662531,10000.0,0.00016,2]
[334577036,1723262671742,10000.0,0.00016,2]
[334577037,1723262679878,10000.0,0.00016,2]
[334577039,1723262775957,167.299673,0.00014247,2]
[334577064,1723263032432,-200.0,0.00018904,2]
[334577066,1723263032442,-300.0,0.00019086,2]
[334577068,1723263032451,-19431.2397698,0.00019087,2]
[334577070,1723263032461,-170.931454,0.00019283,2]
[334577072,1723263032472,-168.614254,0.0001938,2]
[334577074,1723263032481,-168.614254,0.00019716,2]
[334577076,1723263032491,-154.87081224,0.0002,2]
[334577078,1723263032500,-1444.82566449,0.0002,2]
[334577080,1723263032510,-168.614254,0.00020053,2]
[334577082,1723263032519,-600.0,0.00020227,2]
[334577084,1723263032529,-1412.0,0.00020287,2]
[334577086,1723263032539,-168.614254,0.00020389,2]
[334577088,1723263032548,-952.15920477,0.00020438,2]
[334577090,1723263032557,-805.09773374,0.00020469,2]
[334577188,1723263038654,-194.90226626,0.00020469,2]
[334577190,1723263038664,-283.20000091,0.0002051,2]
[334577192,1723263038674,-283.20000091,0.00020533,2]
[334577194,1723263038683,-500.0,0.00020547,4]
[334577196,1723263038693,-500.0,0.00020547,4]
[334577198,1723263038703,-500.0,0.00020547,4]
[334577200,1723263038715,-500.0,0.00020547,4]
[334577202,1723263038725,-500.0,0.00020547,4]
[334577204,1723263038737,-500.0,0.00020547,4]
[334577206,1723263038749,-500.0,0.00020547,4]
[334577208,1723263038758,-500.0,0.00020547,4]
[334577210,1723263038768,-500.0,0.00020547,4]
[334577212,1723263038778,-500.0,0.00020547,4]
[334577214,1723263038788,-203.09822424,0.00020547,4]
[334577216,1723263038798,-1000.0,0.00020549,2]
[334577218,1723263038808,-1000.0,0.00020549,2]
[334577220,1723263038818,-283.20000091,0.00020556,2]
[334577223,1723263038828,-283.20000091,0.00020578,2]
[334577224,1723263038838,-1000.0,0.00020588,2]
[334577227,1723263038849,-1020.4320359,0.000206,2]
[334577229,1723263038859,-19576.08506356,0.000206,8]
[334577231,1723263038869,-2000.0,0.00020601,2]
[334577233,1723263038879,-283.20000091,0.00020601,2]
[334577235,1723263038890,-1000.0,0.00020603,2]
[334577237,1723263038899,-27236.79752296,0.0002061,3]
[334577239,1723263038909,-1004.23,0.0002061,2]
[334577241,1723263038920,-3031.09842956,0.00020611,2]
[334577243,1723263038929,-328.70707109,0.0002062,2]
[334577245,1723263038941,-1004.23,0.00020638,2]
[334577247,1723263038951,-151.0,0.00020652,2]
[334577249,1723263038965,-151.0,0.00020652,2]
[334577252,1723263038975,-1004.23,0.00020665,2]
[334577254,1723263038987,-384.25,0.00020681,3]
[334577255,1723263039002,-192.13,0.00020681,3]
[334577258,1723263039012,-576.4,0.00020681,3]
[334577260,1723263039021,-150.0,0.00020684,2]
[334577262,1723263039031,-150.0,0.00020684,2]
[334577264,1723263039040,-507.0,0.00020684,2]
[334577266,1723263039050,-306.0,0.00020685,2]
[334577268,1723263039060,-527.78652367,0.0002069,2]
[334577270,1723263039069,-500.0,0.0002069,2]
[334577272,1723263039079,-244.85891999,0.0002069,2]
[334577274,1723263039088,-117789.419564,0.00020691,2]
[334577276,1723263039098,-1004.23,0.00020693,2]
[334577278,1723263039107,-150.112233,0.000207,4]
[334577280,1723263039117,-150.112233,0.000207,5]
[334577282,1723263039127,-150.112233,0.000207,3]
[334577284,1723263039136,-155.923835,0.000207,5]
[334577286,1723263039147,-880.79709,0.000207,2]
[334577288,1723263039157,-1000.0,0.000207,2]
[334577290,1723263039166,-151.0,0.000207,2]
[334577292,1723263039176,-243.109662,0.000207,2]
[334577294,1723263039186,-197.725928,0.000207,2]
[334577296,1723263039195,-197.725928,0.000207,2]
[334577298,1723263039205,-197.725928,0.000207,2]
[334577300,1723263039214,-197.725928,0.000207,2]
[334577302,1723263039228,-151.0,0.000207,2]
[334577304,1723263039238,-151.0,0.000207,2]
[334577306,1723263039248,-270.3701,0.000207,2]
[334577308,1723263039259,-1007.555508,0.000207,2]
[334577310,1723263039269,-20708.53553861,0.000207,11]
[334577312,1723263039279,-92809.54910852,0.00020701,11]
[334577315,1723263039289,-72282.26220635,0.00020701,2]
[334577555,1723263041700,-84770.29721265,0.00020701,2]
[334577557,1723263041711,-599.23299,0.00020701,2]
[334577559,1723263041721,-599.23299,0.00020701,2]
[334577561,1723263041732,-300.838003,0.00020701,2]
[334577563,1723263041742,-300.838003,0.00020701,2]
[334577565,1723263041753,-300.838003,0.00020701,2]
[334577567,1723263041763,-300.838003,0.00020701,2]
[334577569,1723263041773,-151.0,0.00020701,2]
[334577571,1723263041783,-151.0,0.00020701,2]
[334577573,1723263041793,-151.0,0.00020701,2]
[334577575,1723263041802,-151.0,0.00020701,2]
[334577577,1723263041812,-151.0,0.00020701,2]
[334577579,1723263041822,-151.0,0.00020701,2]
[334577581,1723263041832,-299.041067,0.00020701,2]
[334577583,1723263041842,-421.689631,0.00020701,2]
[334577585,1723263041852,-421.689631,0.00020701,2]
[334577587,1723263041862,-388.754769,0.00020701,2]
[334577589,1723263041872,-388.754769,0.00020701,2]
[334577591,1723263041881,-151.0,0.00020701,2]
[334577593,1723263041891,-171.52843,0.00020701,2]
[334577595,1723263041901,-171.52843,0.00020701,2]
[334577597,1723263041910,-151.0,0.00020701,2]
[334577599,1723263041921,-151.0,0.00020701,2]
[334577601,1723263041930,-171.52843,0.00020701,2]
[334577603,1723263041940,-171.52843,0.00020701,2]
[334577605,1723263041950,-341.692922,0.00020701,2]
[334577607,1723263041967,-341.692922,0.00020701,2]
[334577609,1723263041977,-399.465374,0.00020701,2]
[334577611,1723263041987,-399.465374,0.00020701,2]
[334577613,1723263041997,-290.18469059,0.0002071,2]
[334577615,1723263042008,-169.06065909,0.0002071,2]
[334577617,1723263042018,-544.92182676,0.0002071,2]
[334577620,1723263042029,-544.92182676,0.0002071,2]
[334577622,1723263042042,-500.0,0.0002071,2]
[334577624,1723263042054,-544.92182676,0.0002071,2]
[334577626,1723263042064,-544.92182676,0.0002071,2]
[334577628,1723263042073,-544.92182676,0.0002071,2]
[334577630,1723263042083,-544.92182676,0.0002071,2]
[334577632,1723263042094,-544.92182676,0.0002071,2]
[334577634,1723263042104,-544.92182676,0.0002071,2]
[334577636,1723263042114,-544.92182676,0.0002071,2]
[334577637,1723263042125,-544.92182676,0.0002071,2]
[334577638,1723263042135,-544.92182676,0.0002071,2]
[334577639,1723263042146,-544.92182676,0.0002071,2]
[334577640,1723263042158,-544.92182676,0.0002071,2]
[334577641,1723263042167,-544.92182676,0.0002071,2]
[334577642,1723263042178,-544.92182676,0.0002071,2]
[334577643,1723263042189,-544.92182676,0.0002071,2]
[334577644,1723263042202,-544.92182676,0.0002071,2]
[334577645,1723263042214,-544.92182676,0.0002071,2]
[334577646,1723263042225,-544.92182676,0.0002071,2]
[334577647,1723263042239,-544.92182676,0.0002071,2]
[334577648,1723263042248,-1556.43956545,0.0002071,2]
[334577649,1723263042257,-1556.43956545,0.0002071,2]
[334577650,1723263042266,-1556.43956545,0.0002071,2]
[334577651,1723263042275,-1556.43956545,0.0002071,2]
[334577652,1723263042284,-1556.43956545,0.0002071,2]
[334577653,1723263042292,-1556.43956545,0.0002071,2]
[334577655,1723263042302,-1556.43956545,0.0002071,2]
[334577656,1723263042311,-1556.43956545,0.0002071,2]
[334577657,1723263042322,-153.818964,0.0002071,2]
[334577658,1723263042333,-880.79709,0.0002071,2]
[334577659,1723263042343,-197.725928,0.0002071,2]
[334577660,1723263042352,-197.725928,0.0002071,2]
[334577661,1723263042362,-151.0,0.0002071,2]
[334577662,1723263042371,-1627.09162866,0.00020711,2]
[334577664,1723263042381,-102582.03048528,0.00020711,2]
[334577689,1723263211689,169.236707,0.00014247,2]
[334577692,1723263692630,167.700514,0.00014247,2]
[334577707,1723263997144,-200.0,0.00018904,2]
[334577708,1723263997168,-172.01586102,0.00018988,2]
[334577715,1723264103786,347.74315074,0.000125,2]
[334577752,1723264232766,-200.0,0.00018904,2]
[334577754,1723264232776,-140.0,0.00019038,2]
[334577785,1723264238873,-37.111252,0.00019038,2]
[334577787,1723264238883,-177.111252,0.00019369,2]
[334577789,1723264238893,-177.111252,0.000197,2]
[334577791,1723264238902,-300.0,0.00019898,2]
[334577793,1723264238912,-3031.09842956,0.00019899,2]
[334577795,1723264238921,-27236.79752296,0.000199,2]
[334577797,1723264238931,-150.112233,0.000199,2]
[334577799,1723264238940,-150.112233,0.000199,2]
[334577801,1723264238949,-150.112233,0.000199,2]
[334577803,1723264238959,-542.31,0.0001996,3]
[334577805,1723264238969,-271.16,0.0001996,3]
[334577807,1723264238978,-813.48,0.0001996,3]
[334577809,1723264238987,-137754.40332,0.0001997,2]
[334577811,1723264238998,-200.0,0.00019973,2]
[334577813,1723264239007,-200.0,0.00019973,2]
[334577815,1723264239017,-200.0,0.00019973,2]
[334577817,1723264239026,-500.0,0.00019979,2]
[334577819,1723264239035,-527.78652367,0.00019979,2]
[334577821,1723264239045,-244.85891999,0.00019979,2]
[334577823,1723264239055,-91836.2688802,0.0001998,2]
[334577825,1723264239064,-161.655673,0.00019988,2]
[334577827,1723264239073,-151.0,0.00019988,2]
[334577829,1723264239083,-113779.5653438,0.00019988,11]
[334577831,1723264239093,-91836.2688802,0.00019989,2]
[334577833,1723264239102,-500.0,0.00019989,2]
[334577835,1723264239111,-812.84348432,0.00019989,2]
[334577837,1723264239120,-290.18469059,0.00019989,2]
[334577839,1723264239130,-169.06065909,0.00019989,2]
[334577841,1723264239140,-812.84348432,0.00019989,2]
[334577843,1723264239149,-812.84348432,0.00019989,2]
[334577844,1723264239158,-812.84348432,0.00019989,2]
[334577845,1723264239169,-812.84348432,0.00019989,2]
[334577846,1723264239180,-812.84348432,0.00019989,2]
[334577847,1723264239189,-812.84348432,0.00019989,2]
[334577848,1723264239201,-812.84348432,0.00019989,2]
[334577849,1723264239211,-812.84348432,0.00019989,2]
[334577850,1723264239220,-812.84348432,0.00019989,2]
[334577851,1723264239230,-812.84348432,0.00019989,2]
[334577852,1723264239239,-812.84348432,0.00019989,2]
[334577853,1723264239250,-812.84348432,0.00019989,2]
[334577854,1723264239260,-812.84348432,0.00019989,2]
[334577855,1723264239270,-812.84348432,0.00019989,2]
[334577856,1723264239279,-812.84348432,0.00019989,2]
[334577857,1723264239290,-812.84348432,0.00019989,2]
[334577858,1723264239299,-812.84348432,0.00019989,2]
[334577859,1723264239309,-812.84348432,0.00019989,2]
[334577860,1723264239319,-812.84348432,0.00019989,2]
[334577861,1723264239329,-41428.90437848,0.0001999,11]
[334577862,1723264239338,-227947.67814997,0.0001999,2]
[334577863,1723264239348,-633.551366,0.0001999,2]
[334577864,1723264239358,-633.551366,0.0001999,2]
[334577865,1723264239367,-151.0,0.0001999,2]
[334577866,1723264239377,-633.551366,0.00019999,2]
[334577867,1723264239386,-633.551366,0.00019999,2]
[334577868,1723264239395,-151.0,0.00019999,2]
[334577869,1723264239404,-8175.23996722,0.0002,2]
[334577870,1723264239414,-566.08218277,0.0002,2]
[334577871,1723264239428,-163.67414706,0.0002,2]
[334577872,1723264239437,-154.92194178,0.0002,2]
[334577873,1723264239448,-171.57583552,0.0002,2]
[334577874,1723264239459,-337.14426524,0.0002,2]
[334577875,1723264239469,-155.923836,0.0002,2]
[334577876,1723264239479,-1200.43594907,0.0002,2]
[334577881,1723264241087,-451905.56995823,0.0002,2]
[334577882,1723264241096,-153.0,0.0002,2]
[334577883,1723264241106,-485.943462,0.0002,2]
[334577884,1723264241115,-485.943462,0.0002,2]
[334577885,1723264241125,-485.943462,0.0002,2]
[334577886,1723264241134,-485.943462,0.0002,2]
[334577887,1723264241143,-163.264033,0.0002,2]
[334577888,1723264241152,-163.264033,0.0002,2]
[334577889,1723264241161,-163.264033,0.0002,2]
[334577890,1723264241171,-163.264033,0.0002,2]
[334577891,1723264241180,-194.229046,0.0002,2]
[334577892,1723264241189,-194.229046,0.0002,2]
[334577893,1723264241198,-194.229046,0.0002,2]
[334577894,1723264241207,-194.229046,0.0002,2]
[334577895,1723264241216,-341.548366,0.0002,2]
[334577896,1723264241225,-341.548366,0.0002,2]